[Event "Late-Titled-Tuesday-Blitz-March-05-2024"]
[Site "Chess.com"]
[Date "2024.03.05"]
[Round "11"]
[White "martinmena"]
[Black "KerryStead"]
[Result "1/2-1/2"]
[WhiteElo "2299"]
[BlackElo "2074"]
[TimeControl "180+1"]
[EndTime "16:05:14 PST"]
[Termination "Game drawn by repetition"]

1. c4 {[%clk 0:03:00.9]} 1... g6 {[%clk 0:02:58.1]} 2. g3 {[%clk 0:03:00.8]}
2... Bg7 {[%clk 0:02:59]} 3. Bg2 {[%clk 0:02:59.9]} 3... c6 {[%clk 0:02:59.2]}
4. Nf3 {[%clk 0:02:54.3]} 4... d6 {[%clk 0:02:59.1]} 5. O-O {[%clk 0:02:53.8]}
5... e5 {[%clk 0:02:58.6]} 6. Nc3 {[%clk 0:02:53.8]} 6... Be6 {[%clk 0:02:58.4]}
7. d3 {[%clk 0:02:54.1]} 7... h6 {[%clk 0:02:58.1]} 8. e4 {[%clk 0:02:53.3]}
8... Nd7 {[%clk 0:02:57.7]} 9. Be3 {[%clk 0:02:51]} 9... Qc7 {[%clk 0:02:54.9]}
10. Qd2 {[%clk 0:02:50.1]} 10... Ngf6 {[%clk 0:02:52.5]} 11. h3 {[%clk
0:02:49.5]} 11... a6 {[%clk 0:02:48.6]} 12. b4 {[%clk 0:02:48.8]} 12... b5
{[%clk 0:02:46]} 13. cxb5 {[%clk 0:02:46.6]} 13... axb5 {[%clk 0:02:46.9]} 14.
a4 {[%clk 0:02:45.6]} 14... bxa4 {[%clk 0:02:45.7]} 15. Nxa4 {[%clk 0:02:41.8]}
15... g5 {[%clk 0:02:42.3]} 16. Nc3 {[%clk 0:02:32.5]} 16... Rxa1 {[%clk
0:02:39.7]} 17. Rxa1 {[%clk 0:02:33.4]} 17... O-O {[%clk 0:02:38.7]} 18. h4
{[%clk 0:02:23.9]} 18... g4 {[%clk 0:02:37.3]} 19. Ne1 {[%clk 0:02:21.9]} 19...
Kh7 {[%clk 0:02:34.2]} 20. Ra7 {[%clk 0:02:10.4]} 20... Qb8 {[%clk 0:02:31.8]}
21. Ra6 {[%clk 0:02:01.2]} 21... Qxb4 {[%clk 0:02:14]} 22. Rxc6 {[%clk
0:01:53.9]} 22... Nc5 {[%clk 0:01:57.3]} 23. Nd5 {[%clk 0:01:25]} 23... Qxd2
{[%clk 0:01:44.1]} 24. Bxd2 {[%clk 0:01:12.9]} 24... Ne8 {[%clk 0:01:36.2]} 25.
Bb4 {[%clk 0:00:56.4]} 25... Bd7 {[%clk 0:01:28.7]} 26. Rb6 {[%clk 0:00:56.7]}
26... Na4 {[%clk 0:01:04.2]} 27. Ra6 {[%clk 0:00:34.5]} 27... Bb5 {[%clk
0:01:03.3]} 28. Ra5 {[%clk 0:00:30.2]} 28... Bc6 {[%clk 0:00:58.7]} 29. Ne7
{[%clk 0:00:25.9]} 29... Bd7 {[%clk 0:00:56.7]} 30. Ra7 {[%clk 0:00:24.4]} 30...
Bb5 {[%clk 0:00:54]} 31. Rb7 {[%clk 0:00:22.1]} 31... Bf6 {[%clk 0:00:39.6]} 32.
Nd5 {[%clk 0:00:18.5]} 32... Bc6 {[%clk 0:00:38.9]} 33. Nxf6+ {[%clk 0:00:16.8]}
33... Nxf6 {[%clk 0:00:39.2]} 34. Rc7 {[%clk 0:00:17.1]} 34... Bb5 {[%clk
0:00:36.6]} 35. Bxd6 {[%clk 0:00:17.5]} 35... Re8 {[%clk 0:00:31.8]} 36. Re7
{[%clk 0:00:15.4]} 36... Rxe7 {[%clk 0:00:30.9]} 37. Bxe7 {[%clk 0:00:16.3]}
37... Nd7 {[%clk 0:00:30.1]} 38. Bf1 {[%clk 0:00:13.6]} 38... Kg6 {[%clk
0:00:27.1]} 39. Bb4 {[%clk 0:00:11.3]} 39... Nac5 {[%clk 0:00:24.6]} 40. Bc3
{[%clk 0:00:09.8]} 40... f6 {[%clk 0:00:24]} 41. f3 {[%clk 0:00:07.8]} 41...
gxf3 {[%clk 0:00:23.3]} 42. Kf2 {[%clk 0:00:08.5]} 42... Kf7 {[%clk 0:00:22.1]}
43. Kxf3 {[%clk 0:00:08.7]} 43... Ke6 {[%clk 0:00:22.1]} 44. Ke3 {[%clk
0:00:08.7]} 44... Na4 {[%clk 0:00:22.2]} 45. Bb4 {[%clk 0:00:08.1]} 45... Nb2
{[%clk 0:00:21.9]} 46. Be2 {[%clk 0:00:08]} 46... Na4 {[%clk 0:00:20.8]} 47. Nc2
{[%clk 0:00:07.2]} 47... Nac5 {[%clk 0:00:19.4]} 48. d4 {[%clk 0:00:07]} 48...
exd4+ {[%clk 0:00:18.5]} 49. Nxd4+ {[%clk 0:00:07.6]} 49... Kf7 {[%clk
0:00:17.5]} 50. Bxb5 {[%clk 0:00:07.9]} 50... Kg6 {[%clk 0:00:15.3]} 51. g4
{[%clk 0:00:07.4]} 51... h5 {[%clk 0:00:14.9]} 52. Kf4 {[%clk 0:00:04.4]} 52...
hxg4 {[%clk 0:00:14.6]} 53. Kxg4 {[%clk 0:00:04]} 53... Ne5+ {[%clk 0:00:12.7]}
54. Kg3 {[%clk 0:00:04.6]} 54... Nxe4+ {[%clk 0:00:12.7]} 55. Kf4 {[%clk
0:00:03.7]} 55... Nf2 {[%clk 0:00:11.5]} 56. Bd2 {[%clk 0:00:03]} 56... Nfd3+
{[%clk 0:00:11]} 57. Bxd3+ {[%clk 0:00:02.6]} 57... Nxd3+ {[%clk 0:00:11.9]} 58.
Ke3 {[%clk 0:00:03.5]} 58... Nc5 {[%clk 0:00:12]} 59. Nf3 {[%clk 0:00:03.7]}
59... Ne6 {[%clk 0:00:11]} 60. Bc3 {[%clk 0:00:03.9]} 60... Kf5 {[%clk
0:00:09.7]} 61. Bb2 {[%clk 0:00:03.2]} 61... Ng7 {[%clk 0:00:09]} 62. Kf2 {[%clk
0:00:03.3]} 62... Nh5 {[%clk 0:00:08.6]} 63. Kg2 {[%clk 0:00:02.4]} 63... Kg4
{[%clk 0:00:09]} 64. Bc1 {[%clk 0:00:02.3]} 64... f5 {[%clk 0:00:09.3]} 65. Bh6
{[%clk 0:00:02.1]} 65... Nf6 {[%clk 0:00:08.6]} 66. Bg5 {[%clk 0:00:02]} 66...
Ne4 {[%clk 0:00:08.4]} 67. Be7 {[%clk 0:00:02]} 67... Kh5 {[%clk 0:00:08.6]} 68.
Bd8 {[%clk 0:00:01.4]} 68... Nd6 {[%clk 0:00:08.5]} 69. Kh3 {[%clk 0:00:01.1]}
69... Nf7 {[%clk 0:00:09.2]} 70. Be7 {[%clk 0:00:01.7]} 70... Kg6 {[%clk
0:00:09.1]} 71. Ng5 {[%clk 0:00:02.3]} 71... Ne5 {[%clk 0:00:08.8]} 72. Ne6
{[%clk 0:00:01.9]} 72... Kf7 {[%clk 0:00:08.4]} 73. h5 {[%clk 0:00:02]} 73...
Kxe7 {[%clk 0:00:07.8]} 74. Ng5 {[%clk 0:00:02.3]} 74... Kf6 {[%clk 0:00:07.3]}
75. Kh4 {[%clk 0:00:02.9]} 75... Nf7 {[%clk 0:00:06.5]} 76. Nxf7 {[%clk
0:00:02.6]} 76... Kxf7 {[%clk 0:00:06.9]} 77. Kg5 {[%clk 0:00:03.3]} 77... Kg7
{[%clk 0:00:07.4]} 78. Kxf5 {[%clk 0:00:03.4]} 78... Kh6 {[%clk 0:00:08.3]} 79.
Kg4 {[%clk 0:00:04.3]} 79... Kh7 {[%clk 0:00:08.8]} 80. Kg5 {[%clk 0:00:05.2]}
80... Kg7 {[%clk 0:00:09.5]} 81. h6+ {[%clk 0:00:06.1]} 81... Kh7 {[%clk
0:00:10.4]} 82. Kh5 {[%clk 0:00:06.9]} 82... Kh8 {[%clk 0:00:11.1]} 83. Kg6
{[%clk 0:00:07.8]} 83... Kg8 {[%clk 0:00:12]} 84. Kg5 {[%clk 0:00:08.7]} 84...
Kh8 {[%clk 0:00:12.9]} 85. Kh5 {[%clk 0:00:09.6]} 85... Kg8 {[%clk 0:00:13.4]}
86. Kg6 {[%clk 0:00:10.5]} 86... Kh8 {[%clk 0:00:14.2]} 87. Kf6 {[%clk
0:00:10.5]} 87... Kg8 {[%clk 0:00:15.1]} 88. Kg5 {[%clk 0:00:11.4]} 88... Kh8
{[%clk 0:00:16]} 89. Kh5 {[%clk 0:00:12.3]} 89... Kh7 {[%clk 0:00:16.9]} 90. Kg5
{[%clk 0:00:12.3]} 90... Kh8 {[%clk 0:00:17.8]} 1/2-1/2

[Event "Late-Titled-Tuesday-Blitz-March-05-2024"]
[Site "Chess.com"]
[Date "2024.03.05"]
[Round "11"]
[White "Abund"]
[Black "lefonghua"]
[Result "1/2-1/2"]
[WhiteElo "2784"]
[BlackElo "2608"]
[TimeControl "180+1"]
[EndTime "16:05:52 PST"]
[Termination "Game drawn by 50-move rule"]

1. e4 {[%clk 0:02:55.1]} 1... c5 {[%clk 0:02:59.2]} 2. Nf3 {[%clk 0:02:55.5]}
2... g6 {[%clk 0:02:59.6]} 3. c3 {[%clk 0:02:55.6]} 3... Nc6 {[%clk 0:02:59.5]}
4. d4 {[%clk 0:02:55.9]} 4... d5 {[%clk 0:02:59.7]} 5. dxc5 {[%clk 0:02:49.8]}
5... dxe4 {[%clk 0:02:57.5]} 6. Qxd8+ {[%clk 0:02:49.4]} 6... Nxd8 {[%clk
0:02:57.3]} 7. Ng5 {[%clk 0:02:31.3]} 7... Nf6 {[%clk 0:02:41.1]} 8. Nd2 {[%clk
0:02:25.6]} 8... Bf5 {[%clk 0:02:39.1]} 9. Bb5+ {[%clk 0:01:56.9]} 9... Nc6
{[%clk 0:02:37]} 10. f3 {[%clk 0:01:57.2]} 10... exf3 {[%clk 0:02:19.1]} 11.
Ngxf3 {[%clk 0:01:55.5]} 11... Bd7 {[%clk 0:02:00.5]} 12. O-O {[%clk 0:01:49.8]}
12... Bg7 {[%clk 0:01:55.7]} 13. Re1 {[%clk 0:01:40.5]} 13... O-O {[%clk
0:01:54.2]} 14. Nb3 {[%clk 0:01:41]} 14... a6 {[%clk 0:01:47.9]} 15. Bc4 {[%clk
0:01:34.5]} 15... Bg4 {[%clk 0:01:25.3]} 16. Nfd4 {[%clk 0:01:29.1]} 16... Nxd4
{[%clk 0:01:25.2]} 17. cxd4 {[%clk 0:01:28.3]} 17... e6 {[%clk 0:01:18.8]} 18.
Bf4 {[%clk 0:01:12.2]} 18... Rfd8 {[%clk 0:01:08.1]} 19. Rac1 {[%clk 0:00:59.3]}
19... Bf5 {[%clk 0:00:58.8]} 20. Rcd1 {[%clk 0:00:51.5]} 20... Be4 {[%clk
0:00:56.5]} 21. Bg5 {[%clk 0:00:46.3]} 21... Bd5 {[%clk 0:00:54.8]} 22. Na5
{[%clk 0:00:34.4]} 22... h6 {[%clk 0:00:49.2]} 23. Bf4 {[%clk 0:00:28.7]} 23...
Bxc4 {[%clk 0:00:43.4]} 24. Nxc4 {[%clk 0:00:28.9]} 24... Nd5 {[%clk 0:00:43.3]}
25. Bd6 {[%clk 0:00:26.5]} 25... Bf8 {[%clk 0:00:39.9]} 26. Be5 {[%clk 0:00:26]}
26... Bg7 {[%clk 0:00:39.7]} 27. Bd6 {[%clk 0:00:23.8]} 27... Bf8 {[%clk
0:00:37.5]} 28. Bg3 {[%clk 0:00:24]} 28... Bg7 {[%clk 0:00:34]} 29. a3 {[%clk
0:00:22.4]} 29... Rac8 {[%clk 0:00:30.5]} 30. Nd6 {[%clk 0:00:21.6]} 30... Rc7
{[%clk 0:00:26.9]} 31. Rd3 {[%clk 0:00:18.9]} 31... Bf8 {[%clk 0:00:19.4]} 32.
Ne4 {[%clk 0:00:17.5]} 32... Rcd7 {[%clk 0:00:17.7]} 33. Red1 {[%clk 0:00:16.4]}
33... f5 {[%clk 0:00:15.5]} 34. Nd6 {[%clk 0:00:13.5]} 34... Bxd6 {[%clk
0:00:13.7]} 35. Bxd6 {[%clk 0:00:14.4]} 35... Kf7 {[%clk 0:00:12.9]} 36. Be5
{[%clk 0:00:14.8]} 36... Nf6 {[%clk 0:00:12.6]} 37. h3 {[%clk 0:00:12.6]} 37...
h5 {[%clk 0:00:12]} 38. Bxf6 {[%clk 0:00:10]} 38... Kxf6 {[%clk 0:00:12.3]} 39.
Kf2 {[%clk 0:00:10.1]} 39... g5 {[%clk 0:00:10]} 40. b4 {[%clk 0:00:09.9]} 40...
h4 {[%clk 0:00:10]} 41. Ke3 {[%clk 0:00:10.1]} 41... Rd5 {[%clk 0:00:09.5]} 42.
R1d2 {[%clk 0:00:10.2]} 42... e5 {[%clk 0:00:09.3]} 43. dxe5+ {[%clk 0:00:09.4]}
43... Rxe5+ {[%clk 0:00:10.2]} 44. Kf2 {[%clk 0:00:09.5]} 44... Rde8 {[%clk
0:00:09.5]} 45. Rd6+ {[%clk 0:00:09.3]} 45... R5e6 {[%clk 0:00:09.6]} 46. Rd7
{[%clk 0:00:09.8]} 46... R8e7 {[%clk 0:00:10.2]} 47. Rd8 {[%clk 0:00:10.2]}
47... Re3 {[%clk 0:00:09.8]} 48. Rf8+ {[%clk 0:00:09.5]} 48... Kg7 {[%clk
0:00:09.9]} 49. Rxf5 {[%clk 0:00:09.5]} 49... Kg6 {[%clk 0:00:09.4]} 50. Rf3
{[%clk 0:00:07.1]} 50... Rxf3+ {[%clk 0:00:08]} 51. Kxf3 {[%clk 0:00:07.7]}
51... Kf5 {[%clk 0:00:06.9]} 52. Rd5+ {[%clk 0:00:07.7]} 52... Kf6 {[%clk
0:00:07.5]} 53. Rd6+ {[%clk 0:00:08]} 53... Kf5 {[%clk 0:00:07.9]} 54. Rd5+
{[%clk 0:00:07.8]} 54... Kf6 {[%clk 0:00:08.1]} 55. Rd6+ {[%clk 0:00:07.5]}
55... Kf5 {[%clk 0:00:08.4]} 56. Rb6 {[%clk 0:00:08.4]} 56... Rd7 {[%clk
0:00:08.2]} 57. Ke3 {[%clk 0:00:08.4]} 57... Re7+ {[%clk 0:00:07.2]} 58. Kd2
{[%clk 0:00:08.5]} 58... Kf4 {[%clk 0:00:06.7]} 59. Rg6 {[%clk 0:00:08.2]} 59...
Rd7+ {[%clk 0:00:06.2]} 60. Ke2 {[%clk 0:00:07.8]} 60... Re7+ {[%clk 0:00:06.8]}
61. Kf2 {[%clk 0:00:08.1]} 61... Rd7 {[%clk 0:00:07.5]} 62. Rf6+ {[%clk
0:00:08.5]} 62... Ke4 {[%clk 0:00:07.9]} 63. Rf3 {[%clk 0:00:06.7]} 63... Rd2+
{[%clk 0:00:07.6]} 64. Kg1 {[%clk 0:00:07.1]} 64... Ra2 {[%clk 0:00:07.4]} 65.
Kh2 {[%clk 0:00:05.1]} 65... Ra1 {[%clk 0:00:06.1]} 66. Rf7 {[%clk 0:00:05.1]}
66... Rxa3 {[%clk 0:00:06.2]} 67. Rxb7 {[%clk 0:00:05.3]} 67... Rc3 {[%clk
0:00:04.7]} 68. Rb6 {[%clk 0:00:05.3]} 68... Rc4 {[%clk 0:00:04.7]} 69. Rxa6
{[%clk 0:00:05.3]} 69... Rxb4 {[%clk 0:00:05.4]} 70. Rg6 {[%clk 0:00:06]} 70...
Kf5 {[%clk 0:00:04.8]} 71. Rd6 {[%clk 0:00:06.1]} 71... Rc4 {[%clk 0:00:05.2]}
72. Rd5+ {[%clk 0:00:06.5]} 72... Kf4 {[%clk 0:00:05.1]} 73. Kg1 {[%clk
0:00:05.4]} 73... Rc2 {[%clk 0:00:05]} 74. Kh2 {[%clk 0:00:05.4]} 74... Rc1
{[%clk 0:00:05]} 75. Rd8 {[%clk 0:00:04.2]} 75... Rxc5 {[%clk 0:00:04.5]} 76.
Rf8+ {[%clk 0:00:04.9]} 76... Rf5 {[%clk 0:00:04.9]} 77. Rb8 {[%clk 0:00:05.2]}
77... Re5 {[%clk 0:00:05.4]} 78. Rb4+ {[%clk 0:00:05.4]} 78... Re4 {[%clk
0:00:06]} 79. Rb5 {[%clk 0:00:05.6]} 79... Re5 {[%clk 0:00:06.6]} 80. Rb3 {[%clk
0:00:06]} 80... Re3 {[%clk 0:00:06.7]} 81. Rb5 {[%clk 0:00:05]} 81... Re5 {[%clk
0:00:06.9]} 82. Rb8 {[%clk 0:00:05.1]} 82... Kf5 {[%clk 0:00:05.3]} 83. Rf8+
{[%clk 0:00:05.1]} 83... Kg6 {[%clk 0:00:05.8]} 84. Kg1 {[%clk 0:00:05.6]} 84...
Re2 {[%clk 0:00:05.4]} 85. Kf1 {[%clk 0:00:05.1]} 85... Ra2 {[%clk 0:00:05.5]}
86. Re8 {[%clk 0:00:04.8]} 86... Kf6 {[%clk 0:00:05.6]} 87. Rc8 {[%clk
0:00:05.1]} 87... Kg6 {[%clk 0:00:06]} 88. Rc5 {[%clk 0:00:05.5]} 88... Kf6
{[%clk 0:00:06.5]} 89. Rb5 {[%clk 0:00:06]} 89... Kg6 {[%clk 0:00:06.8]} 90. Rb3
{[%clk 0:00:06.1]} 90... Kh5 {[%clk 0:00:06.8]} 91. Rb6 {[%clk 0:00:06.1]} 91...
Rc2 {[%clk 0:00:06.8]} 92. Kg1 {[%clk 0:00:06.3]} 92... Ra2 {[%clk 0:00:07]} 93.
Rc6 {[%clk 0:00:06.2]} 93... Rb2 {[%clk 0:00:07.3]} 94. Kh2 {[%clk 0:00:06.6]}
94... Ra2 {[%clk 0:00:07.8]} 95. Rb6 {[%clk 0:00:07.1]} 95... Rc2 {[%clk
0:00:07.9]} 96. Ra6 {[%clk 0:00:07.6]} 96... Rb2 {[%clk 0:00:08.4]} 97. Re6
{[%clk 0:00:08.1]} 97... Rc2 {[%clk 0:00:08.8]} 98. Rb6 {[%clk 0:00:08.8]} 98...
Ra2 {[%clk 0:00:08.8]} 99. Kh1 {[%clk 0:00:09.3]} 99... Rc2 {[%clk 0:00:08.9]}
100. Kg1 {[%clk 0:00:09.8]} 100... Ra2 {[%clk 0:00:09.2]} 101. Kf1 {[%clk
0:00:10.3]} 101... Rc2 {[%clk 0:00:09.6]} 102. Rf6 {[%clk 0:00:10.5]} 102... Ra2
{[%clk 0:00:09.8]} 103. Rc6 {[%clk 0:00:11]} 103... Rb2 {[%clk 0:00:10.2]} 104.
Rc8 {[%clk 0:00:11.3]} 104... Ra2 {[%clk 0:00:10.6]} 105. Rh8+ {[%clk
0:00:11.7]} 105... Kg6 {[%clk 0:00:11.2]} 106. Rg8+ {[%clk 0:00:12.6]} 106...
Kh6 {[%clk 0:00:11.5]} 107. Rb8 {[%clk 0:00:13.3]} 107... Kh5 {[%clk 0:00:11.8]}
108. Rb4 {[%clk 0:00:13.4]} 108... Kg6 {[%clk 0:00:11.7]} 109. Rb3 {[%clk
0:00:13.9]} 109... Kh5 {[%clk 0:00:12.1]} 110. Kg1 {[%clk 0:00:14.5]} 110... Rc2
{[%clk 0:00:12.3]} 111. Ra3 {[%clk 0:00:14.7]} 111... Rb2 {[%clk 0:00:12.8]}
112. Ra1 {[%clk 0:00:15.3]} 112... Rc2 {[%clk 0:00:13.2]} 113. Rf1 {[%clk
0:00:16]} 113... Rb2 {[%clk 0:00:13.5]} 114. Rf8 {[%clk 0:00:16.7]} 114... Rc2
{[%clk 0:00:13.9]} 115. Rh8+ {[%clk 0:00:17.5]} 115... Kg6 {[%clk 0:00:14.4]}
116. Rg8+ {[%clk 0:00:18.4]} 116... Kh5 {[%clk 0:00:14.9]} 117. Ra8 {[%clk
0:00:19.3]} 117... Rb2 {[%clk 0:00:15]} 118. Kf1 {[%clk 0:00:19.2]} 118... Kg6
{[%clk 0:00:15.3]} 119. Ra4 {[%clk 0:00:19.5]} 119... Kh5 {[%clk 0:00:15.7]}
120. Rg4 {[%clk 0:00:19.7]} 120... Rc2 {[%clk 0:00:16.2]} 121. Ke1 {[%clk
0:00:20.3]} 121... Rb2 {[%clk 0:00:16.6]} 122. Kd1 {[%clk 0:00:21]} 122... Ra2
{[%clk 0:00:17]} 123. Ke1 {[%clk 0:00:21.4]} 123... Rb2 {[%clk 0:00:17.5]} 124.
Kf1 {[%clk 0:00:21.9]} 124... Ra2 {[%clk 0:00:18.1]} 125. Rc4 {[%clk 0:00:22.3]}
125... Rb2 {[%clk 0:00:18.3]} 1/2-1/2